bitfinex/quotes_SOLUSD_20251216
["timestamp","ask_amount","ask_price","bid_price","bid_amount"]
[1765882566476,8.45544514,128.61,128.57,16.69566582]
[1765882566975,0.68,128.6,128.57,16.69566582]
[1765882567171,0.68,128.6,128.57,15.99566582]
[1765882567354,7.77665448,128.59,128.57,15.99566582]
[1765882567788,7.77665448,128.59,128.57,8.52]
[1765882567989,0.68,128.62,128.58,9.50994492]
[1765882568287,8.45484061,128.62,128.58,16.98561074]
[1765882568576,8.45484061,128.62,128.59,8.17566582]
[1765882568773,8.45484061,128.62,128.6,9.22]
[1765882568774,7.77484061,128.62,128.6,9.22]
[1765882568981,7.77363184,128.64,128.61,9.50994492]
[1765882569173,27.20771144,128.64,128.61,16.98561074]
[1765882569360,27.20771144,128.64,128.61,9.50994492]
[1765882569973,27.20771144,128.64,128.62,0.7]
[1765882570174,27.20771144,128.64,128.63,8.52]
[1765882570374,7.77327273,128.65,128.63,9.22]
[1765882570579,7.77327273,128.65,128.64,8.80994492]
[1765882570776,8.45181938,128.67,128.64,8.80994492]
[1765882570972,7.77181938,128.67,128.64,9.50994492]
[1765882571175,7.77181938,128.67,128.64,16.98561074]
[1765882571374,19.42954845,128.67,128.64,16.98561074]
[1765882571670,19.42954845,128.67,128.64,9.50994492]
[1765882573358,27.20136783,128.67,128.64,9.50994492]
[1765882573558,8.15566582,128.66,128.61,0.7]
[1765882573768,0.68,128.64,128.62,8.52]
[1765882574397,8.15566582,128.65,128.62,8.52]
[1765882574598,0.68,128.62,128.56,7.7781282]
[1765882574901,8.15566582,128.62,128.58,0.7]
[1765882575066,8.15566582,128.62,128.59,8.80994492]
[1765882575397,8.15566582,128.62,128.6,8.52]
[1765882575597,7.77544514,128.61,128.6,8.52]
[1765882579693,8.45544514,128.61,128.6,8.52]
[1765882580193,7.77544514,128.61,128.6,8.52]
[1765882581763,19.43716152,128.62,128.6,8.52]
[1765882581764,27.89200213,128.62,128.6,8.52]
[1765882584489,0.68,128.66,128.62,0.7]
[1765882584792,0.68,128.65,128.63,8.52]
[1765882584998,19.43256898,128.65,128.63,8.52]
[1765882585290,8.45242344,128.66,128.63,8.52]
[1765882585492,27.88348204,128.66,128.63,8.52]
[1765882586673,7.77209468,128.67,128.64,8.80994492]
[1765882586996,7.77149132,128.68,128.66,0.7]
[1765882587191,7.77081365,128.69,128.67,9.22]
[1765882587398,7.77081365,128.69,128.67,8.52]
[1765882588101,27.87734251,128.69,128.67,8.52]
[1765882588773,27.87734251,128.69,128.68,8.52]
[1765882590994,0.68,128.68,128.67,8.52]
[1765882591196,8.15412508,128.68,128.67,8.52]
[1765882592080,7.47412508,128.68,128.64,8.80994492]
[1765882592283,8.15412508,128.66,128.64,8.80994492]
[1765882592783,7.47412508,128.66,128.65,8.52]
[1765882593103,8.15412508,128.66,128.65,8.52]
[1765882594205,15.92654852,128.66,128.65,8.52]
[1765882594775,15.92654852,128.66,128.62,9.50994492]
[1765882595099,7.47412508,128.65,128.62,9.50994492]
[1765882595400,7.47412508,128.65,128.63,8.52]
[1765882595787,7.47412508,128.65,128.63,9.2]
[1765882596306,7.77363184,128.64,128.63,17.32994492]
[1765882597507,10.56208584,128.65,128.63,17.32994492]
[1765882598193,29.99465482,128.65,128.63,17.32994492]
[1765882598399,2.78905825,128.64,128.63,8.52]
[1765882599385,10.56269009,128.64,128.63,8.52]
[1765882600109,11.26269009,128.64,128.63,8.52]
[1765882600484,7.77363184,128.64,128.63,8.52]
[1765882600691,11.26269009,128.64,128.63,8.52]
[1765882601384,0.7,128.63,128.61,8.52]
[1765882601592,8.47484061,128.62,128.54,0.68]
[1765882601785,2.78905825,128.61,128.56,8.80994492]
[1765882601991,2.78905825,128.61,128.58,9.48994492]
[1765882602189,2.78905825,128.61,128.59,8.52]
[1765882603582,10.56510801,128.6,128.59,8.52]
[1765882603789,0.7,128.59,128.55,8.80994492]
[1765882604087,2.78905825,128.56,128.54,0.68]
[1765882604283,2.78905825,128.56,128.55,17.32994492]
[1765882604508,2.78905825,128.57,128.55,17.32994492]
[1765882605516,7.47971426,128.57,128.55,17.32994492]
[1765882606010,7.77846919,128.56,128.55,17.32994492]
[1765882606187,7.77846919,128.56,128.55,18.00994492]
[1765882606610,7.77846919,128.56,128.55,17.32994492]
[1765882609901,8.47846919,128.56,128.55,17.32994492]
[1765882610103,15.95818345,128.56,128.55,8.52]
[1765882610309,7.77846919,128.56,128.55,8.52]
[1765882610833,0.7,128.63,128.57,0.68]
[1765882611011,8.17971426,128.64,128.6,0.68]
[1765882611206,8.17971426,128.62,128.61,8.52]
[1765882611996,15.95455487,128.62,128.61,8.52]
[1765882612314,8.47484061,128.62,128.61,8.52]
[1765882612513,7.77484061,128.62,128.61,8.52]
[1765882613106,7.77484061,128.62,128.61,17.32994492]
[1765882613302,7.77484061,128.62,128.61,18.00994492]
[1765882613917,7.77484061,128.62,128.61,17.32994492]
[1765882614091,7.77423618,128.63,128.61,17.32994492]
[1765882614294,46.34517683,128.65,128.62,8.80994492]
[1765882614295,0.7,128.65,128.62,8.80994492]
[1765882614597,8.17971426,128.65,128.62,8.80994492]
[1765882616322,35.38108209,128.67,128.63,0.68]
[1765882616498,35.38108209,128.67,128.64,8.52]
[1765882616699,7.77181938,128.67,128.65,9.48994492]
[1765882618100,0.7,128.66,128.64,8.52]
[1765882618335,15.25153364,128.67,128.64,17.32994492]
[1765882618336,7.77302759,128.65,128.64,17.32994492]
[1765882618512,7.77248335,128.66,128.65,8.80994492]
[1765882620098,7.77201436,128.67,128.65,8.80994492]
[1765882620512,7.77130937,128.68,128.66,0.68]
[1765882620702,7.77130937,128.68,128.67,8.52]
[1765882621298,7.77130937,128.68,128.61,7.77534563]
[1765882621299,0.7,128.67,128.61,7.77534563]
[1765882621500,0.7,128.67,128.6,19.43925515]
[1765882621501,0.7,128.67,128.62,8.52]
[1765882621706,8.17971426,128.66,128.63,8.80994492]
[1765882622198,7.47971426,128.66,128.63,8.80994492]
[1765882622397,7.77302759,128.65,128.63,8.80994492]
[1765882622625,35.38531083,128.65,128.63,8.80994492]
[1765882622804,27.20559657,128.65,128.64,8.52]
[1765882623120,15.25274185,128.65,128.64,8.52]
[1765882624027,7.77302759,128.65,128.64,8.52]
[1765882625406,20.5799979,128.66,128.64,8.52]
[1765882625606,19.9099979,128.66,128.64,8.52]
[1765882626018,19.90878987,128.68,128.65,9.51994492]
[1765882626626,20.57878987,128.68,128.65,9.51994492]
[1765882627011,19.90878987,128.68,128.65,9.51994492]
[1765882627727,7.77121541,128.68,128.65,9.51994492]
[1765882627931,7.77121541,128.68,128.66,0.71]
[1765882628248,0.1,128.7,128.69,9.51994492]
[1765882628540,0.1,128.71,128.7,9.51994492]
[1765882628723,7.76589632,128.77,128.7,29.46751938]
[1765882629033,7.76589632,128.77,128.75,0.71]
[1765882629231,7.76589632,128.77,128.76,8.52]
[1765882629451,7.76544153,128.78,128.76,8.52]
[1765882629811,7.76481413,128.79,128.76,8.52]
[1765882630013,38.81446228,128.82,128.76,8.52]
[1765882630014,8.43276975,128.82,128.79,8.80994492]
[1765882630255,8.43276975,128.82,128.8,8.52]
[1765882630545,12.13757446,128.82,128.75,20.81366745]
[1765882630708,12.13757446,128.8,128.77,9.51994492]
[1765882630909,12.80757446,128.81,128.77,9.51994492]
[1765882631116,12.80757446,128.82,128.79,8.80994492]
[1765882631442,12.80757446,128.81,128.8,8.52]
[1765882631614,12.13757446,128.82,128.8,8.52]
[1765882631818,7.76276975,128.82,128.8,8.52]
[1765882632625,0.67,128.84,128.81,8.80994492]
[1765882632833,20.56930037,128.84,128.81,8.80994492]
[1765882633013,0.67,128.84,128.81,8.80994492]
[1765882633211,7.76142916,128.85,128.83,8.80994492]
[1765882633516,7.76142916,128.85,128.84,8.52]
[1765882633718,19.89900362,128.85,128.84,8.52]
[1765882633918,20.56900362,128.85,128.84,8.52]
[1765882634508,0.67,128.84,128.81,8.52]
[1765882634732,12.13757446,128.82,128.81,8.52]
[1765882634934,12.80757446,128.83,128.81,8.52]
[1765882635535,0.67,128.82,128.81,8.52]
[1765882635906,0.67,128.82,128.76,13.0470912]
[1765882635907,19.90034421,128.82,128.76,13.7570912]
[1765882636107,12.13757446,128.81,128.77,17.32994492]
[1765882636337,0.67,128.8,128.77,17.32994492]
[1765882636514,12.80757446,128.8,128.77,17.32994492]
[1765882636929,0.67,128.8,128.77,17.32994492]
[1765882637131,12.80757446,128.8,128.77,17.32994492]
[1765882638113,7.76457799,128.79,128.77,17.32994492]
[1765882638312,12.80757446,128.78,128.77,8.52]
[1765882638615,12.13757446,128.78,128.77,8.52]
[1765882639136,20.57215245,128.79,128.77,8.52]
[1765882639342,0.67,128.81,128.77,8.52]
[1765882639511,12.80757446,128.8,128.77,17.32994492]
[1765882639712,12.13757446,128.8,128.77,17.32994492]
[1765882639912,0.67,128.79,128.77,17.32994492]
[1765882640231,20.57177682,128.8,128.77,17.32994492]
[1765882640937,19.90177682,128.8,128.77,17.32994492]
[1765882641142,0.67,128.79,128.77,17.32994492]
[1765882641337,0.67,128.79,128.77,8.52]
[1765882641518,12.80757446,128.78,128.74,0.71]
[1765882641718,12.80757446,128.78,128.75,17.32994492]
[1765882641929,12.13757446,128.79,128.76,9.51994492]
[1765882642136,20.57177682,128.8,128.76,17.28619561]
[1765882642337,0.67,128.79,128.76,16.57619561]
[1765882642917,19.90106492,128.81,128.77,0.71]
[1765882643135,20.57106492,128.81,128.78,8.52]
[1765882643439,12.13757446,128.8,128.78,8.52]
[1765882643642,12.80757446,128.79,128.78,8.52]
[1765882643943,0.67,128.78,128.76,8.52]
[1765882644139,20.57314581,128.78,128.76,8.52]
[1765882644918,20.55084896,128.78,128.76,8.52]
[1765882645244,19.87993876,128.79,128.76,9.23]
[1765882645824,19.40692467,128.82,128.77,8.80994492]
[1765882646039,0.67,128.81,128.77,8.80994492]
[1765882646335,8.43397515,128.8,128.77,8.80994492]
[1765882646534,0.67,128.79,128.76,8.52]
[1765882646942,0.67,128.79,128.76,17.32994492]
[1765882648431,0.67,128.79,128.76,8.80994492]
[1765882648725,0.67,128.79,128.77,8.52]
[1765882649137,8.43474189,128.79,128.77,8.52]
[1765882652139,7.76474189,128.79,128.76,70.70994492]
[1765882652339,0.67,128.78,128.77,8.52]
[1765882652850,8.43518092,128.78,128.76,61.9]
[1765882653027,12.78527761,128.77,128.75,8.52]
[1765882653224,12.11527761,128.76,128.75,8.52]
[1765882653537,19.41073166,128.8,128.75,8.52]
[1765882653741,20.56009178,128.79,128.76,8.80994492]
[1765882655246,20.55952485,128.8,128.77,0.7]
[1765882655536,20.55952485,128.8,128.76,17.27622975]
[1765882655876,20.55952485,128.8,128.77,0.7]
[1765882655877,12.11527761,128.8,128.77,0.7]
[1765882656062,19.87891064,128.81,128.78,18.02994492]
[1765882656556,20.55891064,128.81,128.78,17.32994492]
[1765882656755,8.44283318,128.82,128.78,25.09460386]
[1765882656949,20.55811079,128.82,128.8,8.80994492]
[1765882657252,20.55811079,128.82,128.81,8.52]
[1765882657454,7.76283318,128.82,128.81,8.52]
[1765882657833,20.5574448,128.83,128.81,8.52]
[1765882658844,19.8774448,128.83,128.81,8.52]
[1765882659232,7.76216719,128.83,128.81,8.52]
[1765882659432,20.5574448,128.83,128.81,8.52]
[1765882659930,12.11527761,128.83,128.81,8.52]
[1765882660134,20.55694406,128.84,128.81,8.52]
[1765882660340,12.79527761,128.84,128.82,8.80994492]
[1765882660543,19.87653051,128.85,128.82,8.80994492]
[1765882660742,20.555731,128.86,128.82,9.50994492]
[1765882660959,19.875731,128.86,128.83,0.7]
[1765882661160,12.11527761,128.86,128.84,17.32994492]
[1765882661456,12.79527761,128.85,128.84,8.52]
[1765882661957,7.76096235,128.85,128.84,8.52]
[1765882662336,20.55564636,128.86,128.84,8.52]
[1765882662536,12.11527761,128.85,128.84,8.52]
[1765882662938,20.55564636,128.86,128.84,8.52]
[1765882663141,0.68,128.85,128.84,8.52]
[1765882663346,12.79527761,128.85,128.84,8.52]
[1765882663545,0.68,128.84,128.82,8.52]
[1765882663861,20.5574448,128.83,128.82,8.52]
[1765882664248,19.8774448,128.83,128.82,8.52]
[1765882664444,0.68,128.82,128.78,7.76498685]
[1765882664650,12.79527761,128.81,128.79,8.5]
[1765882665351,0.68,128.81,128.79,8.5]
[1765882665547,39.28286279,128.83,128.79,9.2]
[1765882665870,39.96286279,128.83,128.79,9.2]
[1765882666563,0.68,128.82,128.79,8.5]
[1765882667359,7.76170034,128.84,128.81,8.80994492]
[1765882667565,8.44170034,128.84,128.82,8.5]
[1765882667742,20.55697795,128.84,128.82,8.5]
[1765882669080,8.44170034,128.84,128.82,8.5]
[1765882669256,0.68,128.83,128.82,8.5]
[1765882669453,0.68,128.82,128.79,7.76439411]
[1765882669780,0.68,128.82,128.8,17.30994492]
[1765882669983,12.11527761,128.83,128.8,17.30994492]
[1765882670280,20.55762601,128.83,128.8,17.30994492]
[1765882671171,8.4423484,128.83,128.8,17.30994492]
[1765882671372,20.55762601,128.83,128.8,17.30994492]
[1765882671569,20.55762601,128.83,128.8,25.77390107]
[1765882671754,20.55698141,128.84,128.8,25.77390107]
[1765882671951,19.87698141,128.84,128.8,25.77390107]
[1765882672156,12.79527761,128.83,128.8,17.30994492]
[1765882672353,20.55775099,128.83,128.8,17.30994492]
[1765882672871,8.44178739,128.84,128.8,25.77389322]
[1765882673075,12.11527761,128.83,128.8,25.77389322]
[1765882673258,20.557065,128.84,128.8,25.77389322]
[1765882678347,0.68,128.82,128.8,17.30994492]
[1765882678654,12.79527761,128.82,128.8,17.30994492]
[1765882679173,12.79527761,128.83,128.8,25.07358332]
[1765882679358,12.11527761,128.83,128.8,25.77358332]
[1765882680070,12.79527761,128.83,128.8,25.77358332]
[1765882680369,12.79527761,128.83,128.8,25.77377233]
[1765882680957,20.5577276,128.83,128.8,18.00994492]
[1765882681452,0.68,128.82,128.8,17.30994492]
[1765882681965,12.79527761,128.82,128.8,17.30994492]
[1765882682174,12.79527761,128.82,128.78,8.46497499]
[1765882682374,12.79527761,128.82,128.79,8.80994492]
[1765882682682,12.79527761,128.82,128.79,17.30994492]
[1765882683047,20.55833532,128.82,128.79,17.30994492]
[1765882683675,20.55833532,128.82,128.79,18.00994492]
[1765882684474,19.87833532,128.82,128.79,25.07450263]
[1765882684670,19.87833532,128.82,128.8,0.7]
[1765882684846,7.76305771,128.82,128.81,8.5]
[1765882685887,20.59833532,128.82,128.81,8.5]
[1765882686469,19.87772517,128.83,128.81,8.5]
[1765882686777,19.87716309,128.84,128.81,9.2]
[1765882686973,19.87716309,128.84,128.82,0.7]
[1765882687274,20.12330771,128.85,128.83,17.30994492]
[1765882687275,12.11527761,128.85,128.83,17.30994492]
[1765882687458,8.16678994,128.84,128.83,8.5]
[1765882687662,0.72,128.83,128.82,8.5]
[1765882687865,8.48276975,128.82,128.81,8.5]
[1765882688074,15.92955969,128.82,128.81,8.5]
[1765882688755,0.72,128.81,128.77,8.80994492]
[1765882688954,8.16678994,128.8,128.79,8.5]
[1765882690450,0.72,128.79,128.71,8.80994492]
[1765882690643,8.16678994,128.77,128.73,17.27778746]
[1765882691074,7.44678994,128.77,128.73,17.27778746]
[1765882691272,7.44678994,128.76,128.73,16.57778746]
[1765882691487,3.50419815,128.76,128.73,16.57778746]
[1765882691863,3.50419815,128.76,128.73,17.27778746]
[1765882692865,0.72,128.73,128.68,7.77079773]
[1765882693077,2.78419815,128.74,128.7,0.7]
[1765882693397,0.72,128.75,128.72,8.80994492]
[1765882693398,3.50419815,128.75,128.72,8.80994492]
[1765882693546,3.50419815,128.75,128.73,8.5]
[1765882694485,0.72,128.79,128.74,0.7]
[1765882694646,0.72,128.77,128.74,8.80994492]
[1765882695462,2.78419815,128.77,128.74,8.80994492]
[1765882695667,2.78419815,128.76,128.74,8.80994492]
[1765882695866,3.50419815,128.77,128.74,8.80994492]
[1765882696266,3.50419815,128.77,128.74,7.76735683]
[1765882696461,0.72,128.77,128.74,7.76735683]
[1765882696672,0.72,128.77,128.74,16.57730175]
[1765882696872,10.55000106,128.77,128.74,16.57730175]
[1765882697076,11.27000106,128.77,128.74,16.57730175]
[1765882697497,11.27000106,128.77,128.74,8.80994492]
[1765882697870,2.78419815,128.76,128.74,8.80994492]
[1765882698380,11.27082248,128.76,128.74,8.80994492]
[1765882698580,8.48662433,128.76,128.74,8.80994492]
[1765882698780,11.27082248,128.76,128.73,8.5]
[1765882698971,3.50419815,128.74,128.72,8.80994492]
[1765882699170,3.50419815,128.74,128.73,8.52]
[1765882700697,0.72,128.73,128.72,8.52]
[1765882700937,0.72,128.72,128.69,8.80994492]
[1765882701093,2.78419815,128.71,128.7,8.52]
[1765882701973,3.50419815,128.71,128.7,8.52]
[1765882702388,11.27360223,128.71,128.7,8.52]
[1765882702871,8.48940408,128.71,128.7,8.52]
[1765882704702,0.72,128.74,128.7,9.22]
[1765882704909,0.72,128.74,128.7,8.52]
[1765882704910,2.78419815,128.74,128.7,8.52]
[1765882705084,0.72,128.73,128.7,8.52]
[1765882705278,0.72,128.73,128.7,9.22]
[1765882705498,3.50419815,128.73,128.7,9.22]
[1765882705699,0.72,128.72,128.7,8.52]
[1765882705906,3.50419815,128.72,128.7,8.52]
[1765882707106,8.48855658,128.73,128.7,8.52]
[1765882707303,2.78419815,128.72,128.7,8.52]
[1765882707503,3.50419815,128.72,128.7,70.42]
[1765882707703,0.72,128.72,128.7,70.42]
[1765882709112,8.48885974,128.72,128.7,70.42]
[1765882710111,3.50419815,128.71,128.7,70.42]
[1765882711194,11.27360223,128.71,128.7,70.42]
[1765882712613,11.27609539,128.71,128.7,70.42]
[1765882713489,11.27609539,128.71,128.7,8.52]
[1765882715408,0.69,128.7,128.65,7.7727911]
[1765882715613,3.47669131,128.68,128.66,8.52]
[1765882715794,3.47669131,128.67,128.66,8.52]
[1765882715994,11.24851069,128.67,128.66,8.52]
[1765882716606,11.24821408,128.68,128.66,8.52]
[1765882717510,3.47669131,128.67,128.66,8.52]
[1765882718098,0.69,128.66,128.61,8.47522896]
[1765882718307,3.47669131,128.64,128.62,8.52]
[1765882718694,0.69,128.64,128.62,8.52]
[1765882719315,2.78669131,128.7,128.65,8.80994492]
[1765882719491,0.69,128.68,128.66,8.52]
[1765882720199,8.46157725,128.68,128.66,8.52]
[1765882720400,0.69,128.68,128.66,8.52]
[1765882720604,11.24746863,128.69,128.66,16.29237817]
[1765882721418,0.69,128.68,128.66,8.52]
[1765882722214,10.55746863,128.69,128.66,8.52]
[1765882722415,11.24746863,128.69,128.66,9.22]
[1765882722802,8.46077732,128.69,128.66,9.22]
[1765882723721,8.46077732,128.69,128.66,16.99242324]
[1765882724311,7.77077732,128.69,128.67,0.7]
[1765882724628,8.46077732,128.69,128.66,16.99242324]
[1765882725205,7.77077732,128.69,128.66,78.89242324]
[1765882725404,8.46022847,128.7,128.66,78.89242324]
[1765882725605,11.24691978,128.7,128.66,78.89242324]
[1765882726329,8.46022847,128.7,128.66,78.89242324]
[1765882726505,11.24691978,128.7,128.66,78.89242324]
[1765882726830,0.69,128.69,128.66,78.89242324]
[1765882727199,8.46065706,128.69,128.66,78.89242324]
[1765882728123,8.46065706,128.69,128.66,71.12]
[1765882728302,11.24734837,128.69,128.66,70.42]
[1765882729533,3.47669131,128.68,128.66,70.42]
[1765882730015,0.69,128.7,128.66,71.12]
[1765882730327,0.69,128.69,128.66,71.12]
[1765882730731,0.69,128.68,128.66,70.42]
[1765882731226,3.47669131,128.69,128.66,8.52]
[1765882731425,11.2475457,128.69,128.66,8.52]
[1765882731626,0.69,128.68,128.66,8.52]
[1765882732017,8.46085439,128.69,128.66,9.22]
[1765882732202,11.2475457,128.69,128.66,9.22]
[1765882733933,0.69,128.68,128.66,8.52]
[1765882734228,11.2475457,128.69,128.66,9.22]
[1765882734424,11.2475457,128.69,128.66,8.52]
[1765882735006,0.69,128.68,128.66,8.52]
[1765882735204,8.46124524,128.68,128.66,8.52]
[1765882737233,7.77124524,128.68,128.66,8.52]
[1765882737431,7.7707789,128.69,128.67,0.7]
[1765882737652,11.24747021,128.69,128.68,8.52]
[1765882739513,8.4607789,128.69,128.68,8.52]
[1765882739835,11.24747021,128.69,128.68,8.52]
[1765882740418,8.4607789,128.69,128.68,8.52]
[1765882740622,7.7707789,128.69,128.68,8.52]
[1765882740834,10.55747021,128.69,128.68,8.52]
[1765882741033,4.06153661,128.72,128.7,0.7]
[1765882741233,0.69,128.81,128.72,0.7]
[1765882741439,0.69,128.76,128.72,0.7]
[1765882741737,2.78669131,128.75,128.73,8.52]
[1765882741928,13.0470912,128.78,128.73,8.52]
[1765882742113,2.78669131,128.77,128.74,0.7]
[1765882742316,11.24275075,128.77,128.74,0.7]
[1765882742510,10.55275075,128.77,128.74,0.7]
[1765882742817,10.55228448,128.78,128.75,0.7]
[1765882743012,0.69,128.8,128.76,8.52]
[1765882743217,7.76492352,128.79,128.77,0.7]
[1765882744224,3.45669131,128.78,128.76,8.52]
[1765882744420,0.67,128.76,128.68,19.42731095]
[1765882744638,0.67,128.71,128.67,0.68]
[1765882744822,2.78669131,128.69,128.68,8.52]
[1765882745139,0.67,128.71,128.68,8.52]
[1765882745140,2.78669131,128.7,128.68,8.52]
[1765882745335,2.78669131,128.69,128.65,0.68]
[1765882745536,2.78669131,128.69,128.66,9.2]
[1765882745954,2.78669131,128.69,128.67,8.52]
[1765882746134,10.55757496,128.69,128.65,7.77276191]
[1765882746338,2.78669131,128.69,128.66,16.97206561]
[1765882747041,38.83938958,128.74,128.68,0.68]
[1765882747042,19.42017593,128.74,128.68,0.68]
[1765882747240,7.768197,128.73,128.7,0.68]
[1765882747445,11.22488831,128.73,128.69,9.2]
[1765882748445,11.22488831,128.73,128.69,16.97037464]
[1765882748742,10.5544906,128.74,128.7,9.48994492]
[1765882748946,11.2244906,128.74,128.7,9.48994492]
[1765882749434,12.7897378,128.74,128.7,9.48994492]
[1765882750346,12.7897378,128.74,128.7,17.25995234]
[1765882750650,4.35193851,128.71,128.66,19.43056664]
[1765882750824,5.02193851,128.72,128.68,8.80994492]
[1765882751029,4.35193851,128.72,128.68,8.80994492]
[1765882751228,5.02193851,128.72,128.68,17.26095048]
[1765882751955,12.79091239,128.72,128.68,17.26095048]
[1765882752337,4.35193851,128.71,128.68,17.26095048]
[1765882752539,12.79091239,128.72,128.68,17.26095048]
[1765882754066,5.02193851,128.72,128.68,17.26095048]
[1765882754463,12.79077338,128.72,128.68,17.26095048]
[1765882755557,5.02193851,128.72,128.69,8.45055991]
[1765882755732,5.02193851,128.72,128.7,8.52]
[1765882756064,8.43880716,128.72,128.7,8.52]
[1765882756235,12.79074567,128.72,128.7,8.52]
[1765882756748,8.43880716,128.72,128.7,8.52]
[1765882756951,12.12074567,128.72,128.7,8.52]
[1765882757156,5.02193851,128.71,128.7,8.52]
[1765882757364,0.67,128.7,128.67,16.58155954]
[1765882757666,4.35193851,128.68,128.66,17.32994492]
[1765882757969,4.35193851,128.68,128.66,79.22994492]
[1765882758665,5.02193851,128.69,128.66,87.68236147]
[1765882759865,12.7926342,128.69,128.66,87.68236147]
[1765882760267,12.7926342,128.69,128.66,87.68222196]
[1765882760756,8.44069569,128.69,128.66,87.68222196]
[1765882763175,12.1226342,128.69,128.66,79.90994492]
[1765882763492,8.44069569,128.69,128.66,87.68233365]
[1765882764579,8.44069569,128.69,128.66,79.90994492]
[1765882765282,12.7926342,128.69,128.66,79.90994492]
[1765882765587,5.02193851,128.69,128.66,87.68199848]
[1765882765997,4.35193851,128.7,128.67,0.68]
[1765882766166,5.02193851,128.7,128.68,8.52]
[1765882766689,0.67,128.7,128.68,8.52]
[1765882766993,12.79227027,128.7,128.68,8.52]
[1765882767291,0.67,128.69,128.68,8.52]
[1765882768383,12.79227027,128.7,128.68,8.52]
[1765882768691,5.02193851,128.73,128.7,0.68]
[1765882768998,7.76880049,128.72,128.71,8.52]
[1765882769291,5.02193851,128.73,128.71,8.52]
[1765882769591,5.02193851,128.72,128.71,8.52]
[1765882769759,0.67,128.71,128.67,8.80994492]
[1765882769965,5.02193851,128.69,128.68,8.52]
[1765882771064,12.79255005,128.69,128.68,8.52]
[1765882772163,8.44061154,128.69,128.68,8.52]
[1765882772371,12.79255005,128.69,128.68,8.52]
[1765882773195,0.67,128.68,128.66,8.52]
[1765882773496,0.7,128.68,128.66,8.52]
[1765882773803,5.05193851,128.68,128.66,8.52]
[1765882774976,4.35193851,128.68,128.66,8.52]
[1765882775294,7.77161187,128.68,128.66,8.52]
[1765882776997,7.77087593,128.69,128.66,9.23]
[1765882777171,8.47087593,128.69,128.66,9.23]
[1765882777500,0.7,128.68,128.66,8.52]
[1765882777795,5.05193851,128.68,128.66,8.52]
[1765882779201,12.82332242,128.68,128.66,8.52]
[1765882779563,4.05554036,128.71,128.66,8.52]
[1765882779794,5.05193851,128.69,128.66,9.23]
[1765882779995,5.05193851,128.69,128.66,8.52]
[1765882780900,4.35193851,128.69,128.66,8.52]
[1765882781202,12.12279988,128.69,128.66,8.52]
[1765882781401,0.7,128.68,128.67,8.80994492]
[1765882782286,5.05193851,128.71,128.67,9.51994492]
[1765882782786,12.12160525,128.71,128.69,8.80994492]
[1765882782998,12.82160525,128.71,128.69,17.32994492]
[1765882783304,12.82310826,128.71,128.69,17.32994492]
[1765882785307,5.05344152,128.7,128.69,8.52]
[1765882785803,0.7,128.69,128.66,8.52]
[1765882786108,5.05344152,128.68,128.66,8.52]
[1765882787276,8.47181938,128.67,128.66,17.32994492]
[1765882787476,8.47181938,128.67,128.66,8.52]
[1765882787477,12.8252609,128.67,128.66,8.52]
[1765882789407,0.7,128.66,128.64,17.32994492]
[1765882789594,5.05344152,128.66,128.64,17.32994492]
[1765882789795,5.05344152,128.65,128.6,7.77586013]
[1765882789999,5.05344152,128.63,128.6,17.00586013]
[1765882790309,5.05344152,128.63,128.6,9.23]
[1765882790492,5.05344152,128.62,128.61,8.80994492]
[1765882791213,5.05344152,128.62,128.6,8.52]
[1765882791505,12.82851978,128.62,128.6,8.52]
[1765882791905,4.35344152,128.61,128.6,17.32994492]
[1765882792705,4.35344152,128.61,128.6,8.52]
[1765882793409,12.82851978,128.62,128.6,8.52]
[1765882795213,8.47544514,128.61,128.6,8.52]
[1765882795583,12.12888666,128.61,128.6,8.52]
[1765882796030,7.77544514,128.61,128.6,8.52]